bitfinex/quotes_ETHUSD_20251212
["timestamp","ask_amount","ask_price","bid_price","bid_amount"]
[1765565868472,43.90745615,3086.6,3086.5,1e-08]
[1765565869364,13.90745615,3086.6,3086.5,1e-08]
[1765565869572,43.90745615,3086.6,3086.5,1e-08]
[1765565869967,39.39388715,3086.6,3086.5,1e-08]
[1765565870470,43.90745615,3086.6,3086.5,1e-08]
[1765565870871,40.52035415,3086.6,3086.5,1e-08]
[1765565871446,43.90745615,3086.6,3086.5,1e-08]
[1765565871673,0.58047529,3086.5,3086.2,0.002]
[1765565871860,0.58047529,3086.5,3085.7,0.002]
[1765565871861,2.92597929,3086.0,3085.7,0.002]
[1765565872174,39.23416952,3085.8,3085.7,0.002]
[1765565872672,39.69676952,3085.8,3085.7,0.002]
[1765565872875,44.33603237,3085.8,3085.7,0.002]
[1765565873078,30.850704,3085.5,3085.2,0.002]
[1765565873263,2.98307529,3085.7,3084.9,0.002]
[1765565873264,30.0,3085.0,3084.9,0.002]
[1765565873576,0.58047529,3085.0,3084.9,0.4826]
[1765565873874,1.09647529,3085.0,3084.9,0.9669]
[1765565874954,4.33796637,3085.0,3084.9,0.4863]
[1765565875360,5.09590092,3085.0,3084.9,0.9669]
[1765565875560,4.33796637,3085.0,3084.9,0.9669]
[1765565875956,4.33796637,3085.0,3084.9,0.4863]
[1765565876146,4.33796637,3085.0,3084.9,0.9669]
[1765565876346,4.33796637,3085.0,3084.9,0.4863]
[1765565876658,4.33796637,3085.0,3084.9,0.9669]
[1765565876659,3.82196637,3085.0,3084.9,0.9669]
[1765565876861,4.33796637,3085.0,3084.9,0.4863]
[1765565877059,4.33796637,3085.0,3084.9,0.002]
[1765565877060,31.93899437,3085.0,3084.9,0.002]
[1765565877282,14.57359837,3085.0,3084.9,0.002]
[1765565877577,8.83508737,3085.0,3084.9,0.002]
[1765565877762,9.71821302,3085.0,3084.9,0.002]
[1765565878266,12.04251302,3085.0,3084.9,0.002]
[1765565878661,12.50511302,3085.0,3084.9,0.002]
[1765565879275,33.96691502,3085.0,3084.9,0.002]
[1765565879650,32.29802602,3085.0,3084.9,0.002]
[1765565879982,10.12927202,3085.0,3084.9,0.002]
[1765565880285,3.24149108,3085.0,3084.9,0.9669]
[1765565880579,3.82196637,3085.0,3084.9,0.9669]
[1765565880779,4.33796637,3085.0,3084.9,0.9669]
[1765565881149,4.33796637,3085.0,3084.9,0.4863]
[1765565881353,4.33796637,3085.0,3084.9,0.9669]
[1765565881671,4.33796637,3085.0,3084.9,0.002]
[1765565881881,3.82196637,3085.0,3084.9,0.9669]
[1765565882075,4.33896637,3085.0,3084.9,0.9669]
[1765565882292,32.12250437,3085.0,3084.9,0.002]
[1765565882472,35.90738537,3085.0,3084.9,0.002]
[1765565882656,13.58534737,3085.0,3084.9,0.002]
[1765565883469,35.91690437,3085.0,3084.9,0.002]
[1765565883662,21.24574537,3085.0,3084.9,0.002]
[1765565883871,21.70834537,3085.0,3084.9,0.002]
[1765565884392,30.07921311,3085.0,3084.9,0.002]
[1765565884701,44.80477211,3085.0,3084.9,0.002]
[1765565886199,30.874304,3084.6,3084.5,1e-08]
[1765565886375,31.97177929,3084.6,3084.5,1e-08]
[1765565886578,32.43437929,3084.6,3084.5,1e-08]
[1765565887080,35.67629072,3084.6,3084.5,1e-08]
[1765565887480,37.61629072,3084.6,3084.5,1e-08]
[1765565887795,38.46381577,3084.6,3084.5,1e-08]
[1765565888107,41.86481577,3084.6,3084.5,1e-08]
[1765565888262,41.86481577,3084.6,3082.7,3.84386046]
[1765565888263,35.797404,3084.3,3084.2,1e-08]
[1765565888466,44.75289558,3084.3,3084.2,1e-08]
[1765565888707,45.21549558,3084.3,3084.2,1e-08]
[1765565888878,5.45489842,3084.3,3084.2,1e-08]
[1765565889082,7.81551305,3084.3,3084.2,1e-08]
[1765565889282,4.22820605,3084.3,3084.2,1e-08]
[1765565889603,7.46532005,3084.3,3084.2,0.48430001]
[1765565890004,3.82270205,3084.3,3084.2,0.96490001]
[1765565890205,4.33970205,3084.3,3084.2,0.96490001]
[1765565890448,5.24547176,3084.3,3084.2,0.96490001]
[1765565890632,0.4626,3085.2,3084.2,0.96490001]
[1765565890634,6.48235178,3085.3,3084.2,0.96490001]
[1765565890960,0.517,3085.2,3084.4,0.4843]
[1765565891309,9.72415803,3085.1,3084.5,0.4806]
[1765565891838,0.58047529,3085.0,3084.2,1e-08]
[1765565892133,0.405504,3084.6,3084.2,0.48060001]
[1765565892315,0.517,3084.5,3084.2,0.48060001]
[1765565892513,0.517,3084.4,3084.2,0.48060001]
[1765565893013,0.517,3084.4,3084.3,0.4843]
[1765565893606,0.517,3084.4,3084.2,1e-08]
[1765565893810,1.27512982,3084.4,3084.2,1e-08]
[1765565894051,1.85560511,3084.4,3084.3,0.4843]
[1765565894341,1.09747529,3084.4,3084.3,0.4843]
[1765565895553,4.33959693,3084.4,3084.2,1e-08]
[1765565896958,4.33959693,3084.4,3084.3,0.4843]
[1765565897673,3.82259693,3084.4,3084.3,0.4843]
[1765565898046,4.33959693,3084.4,3084.3,0.4843]
[1765565898291,3.82259693,3084.4,3084.3,0.4843]
[1765565898487,4.33959693,3084.4,3084.3,0.4843]
[1765565898691,4.33959693,3084.4,3084.2,1e-08]
[1765565898692,5.90565926,3084.4,3084.2,1e-08]
[1765565898846,24.015991,3084.3,3084.2,1e-08]
[1765565899156,19.90250029,3084.3,3084.2,1e-08]
[1765565899556,23.14472705,3084.3,3084.2,1e-08]
[1765565899764,22.67412705,3084.3,3084.2,1e-08]
[1765565899964,24.84421273,3084.3,3084.2,1e-08]
[1765565900172,25.36121273,3084.3,3084.2,1e-08]
[1765565900373,25.84901273,3084.3,3084.2,1e-08]
[1765565900805,9.91183173,3084.3,3084.2,1e-08]
[1765565901086,9.95716373,3084.3,3084.2,1e-08]
[1765565902392,10.36266773,3084.3,3084.2,1e-08]
[1765565903394,9.84566773,3084.3,3084.2,1e-08]
[1765565903695,10.36266773,3084.3,3084.2,1e-08]
[1765565903893,10.85046773,3084.3,3084.2,1e-08]
[1765565904818,11.30676151,3084.3,3084.2,1e-08]
[1765565905022,16.22730715,3084.3,3084.2,1e-08]
[1765565905316,12.44286974,3084.3,3084.2,1e-08]
[1765565905503,15.35606974,3084.3,3084.2,1e-08]
[1765565905705,15.87306974,3084.3,3084.2,1e-08]
[1765565905905,16.36086974,3084.3,3084.2,1e-08]
[1765565906207,11.95506974,3084.3,3084.2,1e-08]
[1765565906408,16.36086974,3084.3,3084.2,1e-08]
[1765565906587,15.87306974,3084.3,3084.2,1e-08]
[1765565906787,15.35606974,3084.3,3084.2,1e-08]
[1765565906989,16.36086974,3084.3,3084.2,1e-08]
[1765565907226,16.81716352,3084.3,3084.2,1e-08]
[1765565907723,12.92836352,3084.3,3084.2,1e-08]
[1765565908097,16.32936352,3084.3,3084.2,1e-08]
[1765565908293,11.95506974,3084.3,3084.2,1e-08]
[1765565908510,3.24222676,3084.3,3084.2,0.93370001]
[1765565908721,3.75922676,3084.3,3084.2,0.93370001]
[1765565908919,3.24222676,3084.3,3084.2,0.93370001]
[1765565909087,3.75922676,3084.3,3084.2,0.93370001]
[1765565910801,3.24222676,3084.3,3084.2,0.93370001]
[1765565911007,3.75922676,3084.3,3084.2,0.93370001]
[1765565912506,3.75922676,3084.3,3084.2,0.45910001]
[1765565912507,3.82270205,3084.3,3084.2,0.45910001]
[1765565912703,4.33970205,3084.3,3084.2,0.93370001]
[1765565913200,4.33970205,3084.3,3084.2,0.45910001]
[1765565914642,3.82270205,3084.3,3084.2,0.45910001]
[1765565914927,4.33970205,3084.3,3084.2,0.93370001]
[1765565915415,3.82270205,3084.3,3084.2,0.93370001]
[1765565915623,3.82270205,3084.3,3084.2,1e-08]
[1765565915624,19.20599205,3084.3,3084.2,1e-08]
[1765565915803,6.9087246,3084.3,3084.2,0.45910001]
[1765565916004,4.33970205,3084.3,3084.2,0.45910001]
[1765565916230,4.33970205,3084.3,3084.2,0.93370001]
[1765565917541,3.82270205,3084.3,3084.2,0.93370001]
[1765565917714,4.33970205,3084.3,3084.2,0.45910001]
[1765565918330,4.33970205,3084.3,3084.2,0.93370001]
[1765565919136,12.9655696,3084.3,3084.2,1e-08]
[1765565920178,18.69000701,3084.3,3084.2,1e-08]
[1765565920319,19.14630079,3084.3,3084.2,1e-08]
[1765565920717,18.14150079,3084.3,3084.2,1e-08]
[1765565921048,18.69000701,3084.3,3084.2,1e-08]
[1765565921231,19.14630079,3084.3,3084.2,1e-08]
[1765565923055,18.76286338,3084.3,3084.2,1e-08]
[1765565923848,9.7120186,3084.3,3084.2,0.45910001]
[1765565924018,4.9050956,3084.3,3084.2,0.45910001]
[1765565924217,4.33970205,3084.3,3084.2,0.93370001]
[1765565924813,3.75922676,3084.3,3084.2,0.93370001]
[1765565925245,4.33970205,3084.3,3084.2,0.93370001]
[1765565925542,4.33970205,3084.3,3084.2,1e-08]
[1765565925743,18.72325505,3084.3,3084.2,1e-08]
[1765565925922,21.5841039,3084.3,3084.2,1e-08]
[1765565926115,27.55079325,3084.3,3084.2,1e-08]
[1765565926747,44.53344425,3084.3,3084.2,1e-08]
[1765565926947,44.91688166,3084.3,3084.2,1e-08]
[1765565927671,45.24098166,3084.3,3084.2,1e-08]
[1765565927858,44.85754425,3084.3,3084.2,1e-08]
[1765565928170,45.24098166,3084.3,3084.2,1e-08]
[1765565931191,39.10634666,3084.3,3084.2,1e-08]
[1765565931350,27.04527788,3084.3,3084.2,1e-08]
[1765565931529,27.47240499,3084.3,3084.2,1e-08]
[1765565931732,44.86171499,3084.3,3084.2,1e-08]
[1765565933261,52.42183359,3084.3,3084.2,1e-08]
[1765565933765,52.805271,3084.3,3084.2,1e-08]
[1765565933941,53.23239811,3084.3,3084.2,1e-08]
[1765565934142,30.03114047,3084.3,3084.2,1e-08]
[1765565934343,8.95499762,3084.3,3084.2,1e-08]
[1765565934542,9.47199762,3084.3,3084.2,1e-08]
[1765565934994,9.97166462,3084.3,3084.2,1e-08]
[1765565935291,9.56616062,3084.3,3084.2,1e-08]
[1765565935490,9.97166462,3084.3,3084.2,1e-08]
[1765565936082,11.61725443,3084.3,3084.2,1e-08]
[1765565936892,11.10025443,3084.3,3084.2,1e-08]
[1765565937275,11.61725443,3084.3,3084.2,1e-08]
[1765565937469,11.61725443,3084.3,3084.2,0.46560001]
[1765565937470,11.10025443,3084.3,3084.2,0.46560001]
[1765565937796,5.76314976,3084.3,3084.2,0.95910001]
[1765565938000,6.34362505,3084.3,3084.2,0.95910001]
[1765565938625,7.68382905,3084.3,3084.2,1e-08]
[1765565938767,8.6637924,3084.3,3084.2,1e-08]
[1765565938965,38.6088694,3084.3,3084.2,1e-08]
[1765565939185,41.83025943,3084.3,3084.2,1e-08]
[1765565939492,45.23125943,3084.3,3084.2,1e-08]
[1765565939668,45.28125943,3084.3,3084.2,1e-08]
[1765565941505,45.36118534,3084.3,3084.2,1e-08]
[1765565942008,30.0,3083.7,3083.6,0.002]
[1765565942300,33.31972556,3083.7,3083.6,0.002]
[1765565942517,37.42107057,3083.7,3083.6,0.002]
[1765565943703,36.54858938,3083.7,3083.6,0.002]
[1765565944093,36.03158938,3083.7,3083.6,0.002]
[1765565944288,17.42609038,3083.7,3083.6,0.4676]
[1765565944493,11.96039738,3083.7,3083.6,0.4676]
[1765565945016,10.10040038,3083.7,3083.6,0.9611]
[1765565945422,18.07675289,3083.7,3083.6,0.002]
[1765565945588,19.0014403,3083.7,3083.6,0.002]
[1765565945792,19.46623408,3083.7,3083.6,0.002]
[1765565946002,45.82142708,3083.7,3083.6,0.002]
[1765565946219,46.27222708,3083.7,3083.6,0.002]
[1765565946594,45.86453967,3083.7,3083.6,0.002]
[1765565946797,46.27222708,3083.7,3083.6,0.002]
[1765565947013,16.27222708,3083.7,3083.6,0.002]
[1765565947214,45.86453967,3083.7,3083.6,0.002]
[1765565947413,39.16939189,3083.7,3083.6,0.002]
[1765565947726,41.11839189,3083.7,3083.6,0.002]
[1765565948127,46.41404589,3083.7,3083.6,0.002]
[1765565948799,46.87883967,3083.7,3083.6,0.002]
[1765565948995,4.74583689,3083.7,3083.6,0.9611]
[1765565949226,4.34033289,3083.7,3083.6,0.9611]
[1765565949429,6.83003689,3083.7,3083.6,0.9611]
[1765565949627,5.7325616,3083.7,3083.6,0.9611]
[1765565949971,6.83003689,3083.7,3083.6,0.9611]
[1765565950139,6.31303689,3083.7,3083.6,0.4676]
[1765565950336,6.73733289,3083.7,3083.6,0.9611]
[1765565951755,4.33933289,3083.7,3083.6,0.9611]
[1765565952244,3.82333289,3083.7,3083.6,0.9611]
[1765565952436,4.33933289,3083.7,3083.6,0.9111]
[1765565953355,28.681582,3083.5,3083.3,0.002]
[1765565953555,24.48815129,3083.4,3083.3,0.002]
[1765565953734,20.24619507,3083.4,3083.3,0.002]
[1765565953936,20.41563622,3083.4,3083.3,0.002]
[1765565954139,23.25814509,3083.4,3083.3,0.002]
[1765565954337,4.40561672,3083.4,3083.3,0.4676]
[1765565954557,4.44883644,3083.4,3083.3,0.4676]
[1765565955362,34.91459356,3083.4,3083.3,0.002]
[1765565957134,34.91459356,3083.4,3083.3,0.4676]
[1765565957333,34.91459356,3083.4,3083.3,0.002]
[1765565957533,38.13598359,3083.4,3083.3,0.002]
[1765565958060,38.13598359,3083.4,3083.3,0.4676]
[1765565958437,18.14076359,3083.4,3083.3,0.9292]
[1765565958642,6.34324541,3083.4,3083.3,0.9292]
[1765565959364,6.39715341,3083.4,3083.3,0.4676]
[1765565959736,4.33964841,3083.4,3083.3,0.9292]
[1765565961063,3.82364841,3083.4,3083.3,0.9292]
[1765565961235,4.33964841,3083.4,3083.3,0.9292]
[1765565961759,3.82364841,3083.4,3083.3,0.9292]
[1765565961963,3.75917312,3083.4,3083.3,0.9292]
[1765565962263,4.33964841,3083.4,3083.3,0.9292]
[1765565964960,33.30015237,3083.4,3083.3,0.002]
[1765565965157,13.69787437,3083.4,3083.3,0.002]
[1765565965357,14.10337837,3083.4,3083.3,0.002]
[1765565965575,13.62527837,3083.4,3083.3,0.468]
[1765565965764,12.86700741,3083.4,3083.3,0.9257]
[1765565965964,3.82364841,3083.4,3083.3,0.9257]
[1765565966163,4.33964841,3083.4,3083.3,0.468]
[1765565967065,4.33964841,3083.4,3083.3,0.9257]
[1765565967388,3.82364841,3083.4,3083.3,0.9257]
[1765565967683,4.33964841,3083.4,3083.3,0.9257]
[1765565968074,8.70736737,3083.4,3083.3,0.468]
[1765565969582,6.63864841,3083.4,3083.3,0.002]
[1765565969782,16.66181641,3083.4,3083.3,0.002]
[1765565970790,20.27779641,3083.4,3083.3,0.002]
[1765565971199,17.04896841,3083.4,3083.3,0.002]
[1765565971359,9.78414041,3083.4,3083.3,0.468]
[1765565971559,11.08686057,3083.4,3083.3,0.468]
[1765565971789,11.70381757,3083.4,3083.3,0.468]
[1765565972094,17.86471834,3083.4,3083.3,0.468]
[1765565972709,33.00654834,3083.4,3083.3,0.002]
[1765565973020,33.48464834,3083.4,3083.3,0.002]
[1765565973615,39.64554911,3083.4,3083.3,0.002]
[1765565973921,32.26755234,3083.4,3083.3,0.002]
[1765565974287,28.69707234,3083.4,3083.3,0.002]
[1765565974488,11.80426934,3083.4,3083.3,0.468]
[1765565974794,14.33428618,3083.4,3083.3,0.468]
[1765565975327,14.33328618,3083.4,3083.3,0.468]
[1765565975828,15.37320218,3083.4,3083.3,0.9257]
[1765565975986,15.37320218,3083.4,3083.3,0.468]
[1765565976187,15.37320218,3083.4,3083.3,0.002]
[1765565976728,6.96380441,3083.4,3083.3,0.9257]
[1765565977039,12.56352518,3083.4,3083.3,0.9257]
[1765565977894,12.56352518,3083.4,3083.3,0.468]
[1765565978520,10.50054918,3083.4,3083.3,0.468]
[1765565978737,10.50054918,3083.4,3083.3,0.9257]
[1765565978738,3.24317312,3083.4,3083.3,0.9257]
[1765565979024,3.75917312,3083.4,3083.3,0.9257]
[1765565979227,4.33964841,3083.4,3083.3,0.9257]
[1765565980164,4.33964841,3083.4,3083.3,0.468]
[1765565980349,5.42222586,3083.4,3083.3,0.9257]
[1765565980659,4.33964841,3083.4,3083.3,0.9257]
[1765565980962,3.82364841,3083.4,3083.3,0.9257]
[1765565981152,4.33964841,3083.4,3083.3,0.002]
[1765565981327,4.33964841,3083.4,3083.3,0.468]
[1765565982136,10.50054918,3083.4,3083.3,0.9257]
[1765565982543,4.33964841,3083.4,3083.3,0.9257]
[1765565984751,3.24304777,3083.6,3083.3,0.9257]
[1765565985066,3.82352306,3083.6,3083.5,0.466]
[1765565985251,4.33952306,3083.6,3083.5,0.466]
[1765565985457,4.33952306,3083.6,3083.5,0.9237]
[1765565985656,9.72604959,3084.5,3083.5,0.9237]
[1765565985853,9.72604959,3084.5,3083.3,0.002]
[1765565985854,24.813839,3084.2,3083.3,0.4597]
[1765565986054,0.58047529,3084.0,3083.3,0.4597]
[1765565986261,0.516,3084.1,3083.3,0.4597]
[1765565986564,0.58047529,3084.1,3084.0,0.4626]
[1765565986861,4.19491353,3084.1,3084.0,0.4626]
[1765565987049,4.3389123,3084.1,3084.0,0.4626]
[1765565987667,3.8229123,3084.1,3084.0,0.4626]
[1765565987865,4.3389123,3084.1,3084.0,0.4626]
[1765565988858,3.8229123,3084.1,3084.0,0.4626]
[1765565989053,4.3389123,3084.1,3084.0,0.4626]
[1765565989263,10.30778632,3084.1,3083.7,0.4577]
[1765565989456,4.3389123,3084.1,3084.0,0.466]
[1765565990488,4.3389123,3084.1,3083.0,1e-08]
[1765565990489,1.949,3083.6,3083.0,1e-08]
[1765565990683,6.48634624,3083.4,3083.0,1e-08]
[1765565990869,11.24782829,3083.1,3083.0,1e-08]
[1765565991075,4.44577029,3083.1,3083.0,1e-08]
[1765565991380,5.31577429,3083.1,3083.0,1e-08]
[1765565991577,3.28968629,3083.1,3083.0,1e-08]
[1765565991881,3.89680129,3083.1,3083.0,1e-08]
[1765565992179,3.41963129,3083.1,3083.0,1e-08]
[1765565992772,6.66311998,3083.1,3083.0,1e-08]
[1765565993385,6.66311998,3083.1,3083.0,0.46670001]
[1765565995268,6.14511998,3083.1,3083.0,0.46670001]
[1765565995459,7.11521998,3083.1,3083.0,1e-08]
[1765565995798,8.95173472,3083.1,3083.0,1e-08]
[1765565996357,9.41623472,3083.1,3083.0,1e-08]
[1765565996682,9.82173872,3083.1,3083.0,1e-08]
[1765565997182,37.03608272,3083.1,3083.0,1e-08]
[1765565997485,9.85604172,3083.1,3083.0,1e-08]
[1765565997859,8.93944172,3083.1,3083.0,1e-08]
[1765565998382,3.82396398,3083.1,3083.0,0.46670001]
[1765565998556,4.34196398,3083.1,3083.0,0.46670001]
[1765565998755,3.82396398,3083.1,3083.0,0.46670001]
[1765565998978,4.34196398,3083.1,3083.0,0.46670001]
[1765565999985,4.34196398,3083.1,3083.0,1e-08]
[1765566000190,3.82396398,3083.1,3083.0,1e-08]
[1765566000357,3.82396398,3083.1,3083.0,0.96540001]
[1765566000358,4.34196398,3083.1,3083.0,0.96540001]
[1765566001063,3.82396398,3083.1,3083.0,0.96540001]
[1765566001359,4.34196398,3083.1,3083.0,0.96540001]
[1765566001559,3.76148869,3083.1,3083.0,0.96540001]
[1765566002179,4.34196398,3083.1,3083.0,0.96540001]
[1765566002385,10.63790362,3083.1,3083.0,1e-08]
[1765566002785,36.74693962,3083.1,3083.0,1e-08]
[1765566003173,40.16393962,3083.1,3083.0,1e-08]
[1765566003486,6.34451098,3083.1,3083.0,0.46670001]
[1765566004085,5.24603569,3083.1,3083.0,0.46670001]
[1765566004284,5.24603569,3083.1,3083.0,0.96540001]
[1765566004285,3.76148869,3083.1,3083.0,0.96540001]
[1765566005083,4.34196398,3083.1,3083.0,0.96540001]
[1765566005408,3.24348869,3083.1,3083.0,0.96540001]
[1765566005556,3.24238038,3084.2,3083.0,0.96540001]
[1765566005762,3.24254215,3084.0,3083.2,0.4667]
[1765566005987,0.58047529,3083.9,3083.2,0.4667]
[1765566006306,0.58047529,3083.9,3083.3,0.4987]
[1765566006464,0.58047529,3084.0,3083.3,0.4987]
[1765566006789,10.24531103,3084.1,3083.3,0.4987]
[1765566007156,0.58047529,3084.0,3083.3,0.4987]
[1765566007361,0.518,3083.9,3083.3,0.4987]
[1765566007588,3.24254215,3084.0,3083.9,0.4667]
[1765566007761,3.76054215,3084.0,3083.9,0.4667]
[1765566007962,3.76054215,3084.0,3083.3,0.4987]
[1765566007963,0.58047529,3083.9,3083.3,0.4987]
[1765566008157,0.58047529,3083.9,3083.1,0.1852]
[1765566008158,0.58047529,3083.7,3083.1,0.1852]
[1765566008381,0.58047529,3083.7,3083.1,0.6839]
[1765566008585,0.518,3083.6,3083.1,0.6839]
[1765566008774,0.518,3083.6,3083.2,0.4987]
[1765566008977,0.58047529,3083.9,3083.5,0.4667]
[1765566009180,0.518,3083.8,3083.5,0.4667]
[1765566009785,0.58047529,3083.6,3083.5,0.4667]
[1765566009987,1.09847529,3083.6,3083.5,0.4987]
[1765566010219,1.09847529,3083.6,3083.5,0.9654]
[1765566010523,1.09847529,3083.6,3083.1,0.1852]
[1765566010524,1.55057529,3083.6,3083.1,0.1852]
[1765566010828,3.09777928,3083.6,3083.0,1e-08]
[1765566011033,0.1099,3083.1,3083.0,1e-08]
[1765566011191,25.56557729,3083.1,3083.0,1e-08]
[1765566011393,19.65508132,3083.1,3083.0,1e-08]
[1765566011714,11.27380501,3083.1,3083.0,1e-08]
[1765566011901,8.05241498,3083.1,3083.0,1e-08]
[1765566012304,4.34196398,3083.1,3083.0,0.96540001]
[1765566013111,3.82396398,3083.1,3083.0,0.96540001]
[1765566013295,4.34196398,3083.1,3083.0,0.96540001]
[1765566013693,4.34196398,3083.1,3083.0,0.46670001]
[1765566013915,8.94574273,3083.1,3083.0,1e-08]
[1765566014420,9.41024273,3083.1,3083.0,1e-08]
[1765566015401,4.34196398,3083.1,3083.0,0.96540001]
[1765566015822,4.34196398,3083.1,3083.0,0.46670001]
[1765566016340,7.49577398,3083.1,3083.0,1e-08]
[1765566016505,7.49577398,3083.1,3082.3,0.002]
[1765566016506,0.1099,3082.8,3082.3,0.002]
[1765566016711,0.4521,3082.4,3082.3,0.002]
[1765566016908,0.9825,3082.7,3082.3,0.002]
[1765566017133,0.4521,3082.4,3082.3,0.002]
[1765566017302,0.4645,3082.6,3082.3,0.002]
[1765566017720,0.58047529,3082.4,3082.3,0.002]
[1765566017919,3.82470056,3082.4,3082.3,0.002]
[1765566018655,4.34270056,3082.4,3082.3,0.002]
[1765566020125,6.07888176,3082.4,3082.3,0.002]
[1765566020329,36.70456076,3082.4,3082.3,0.002]
[1765566020527,34.25954776,3082.4,3082.3,0.002]
[1765566020730,25.45487876,3082.4,3082.3,0.002]
[1765566021157,33.83472526,3082.4,3082.3,0.002]
[1765566021373,45.28905476,3082.4,3082.3,0.002]
[1765566021728,10.59517126,3082.4,3082.3,0.002]
[1765566021944,11.17384876,3082.4,3082.3,0.002]
[1765566022149,10.17034876,3082.4,3082.3,0.002]
[1765566022358,7.72048756,3082.4,3082.3,0.002]
[1765566022633,7.22848756,3082.4,3082.3,0.002]
[1765566023049,7.19338756,3082.4,3082.3,0.002]
[1765566023363,25.76135056,3082.4,3082.3,0.002]
[1765566023558,6.18919856,3082.4,3082.3,0.4621]
[1765566023759,6.70719856,3082.4,3082.3,0.4621]
[1765566024085,8.67072956,3082.4,3082.3,0.002]
[1765566024376,30.47154756,3082.4,3082.3,0.002]
[1765566025362,36.71173556,3082.4,3082.3,0.002]
[1765566025594,37.13655806,3082.4,3082.3,0.002]
[1765566025797,10.03158556,3082.4,3082.3,0.002]
[1765566025967,9.54868556,3082.4,3082.3,0.002]
[1765566026390,19.01792256,3082.4,3082.3,0.002]
[1765566026593,19.50082256,3082.4,3082.3,0.002]
[1765566026890,16.65081156,3082.4,3082.3,0.002]
[1765566027391,29.35181656,3082.4,3082.3,0.002]
[1765566028385,32.97717256,3082.4,3082.3,0.002]
[1765566028592,26.14882556,3082.4,3082.3,0.002]
[1765566028802,23.45954256,3082.4,3082.3,0.002]
[1765566029098,0.405504,3082.0,3081.0,0.2012]
[1765566029397,0.518,3081.9,3081.1,0.4922]
[1765566029890,0.58047529,3081.8,3081.1,0.4922]
[1765566030094,2.116968,3081.7,3081.1,0.4922]
[1765566030298,9.7355184,3081.5,3081.2,0.4922]
[1765566030504,1.09847529,3081.4,3081.2,0.4922]
[1765566030665,0.518,3081.3,3081.2,0.4922]
[1765566031084,0.518,3081.3,3081.2,0.9523]
[1765566031401,0.518,3081.4,3081.2,0.9523]
[1765566031694,0.518,3081.4,3081.3,0.9523]
[1765566031871,3.24448404,3082.2,3081.3,0.9523]
[1765566032199,10.31378266,3082.2,3081.4,0.4922]
[1765566032365,0.518,3082.1,3081.4,0.4922]
[1765566032783,3.24443579,3082.2,3082.1,0.6493]
[1765566032983,4.34291108,3082.2,3082.1,0.6493]
[1765566033185,4.34291108,3082.2,3082.1,1.1415]
[1765566034117,4.34291108,3082.2,3082.1,0.6493]
[1765566034416,4.34291108,3082.2,3081.7,0.4922]
[1765566034417,0.58047529,3082.1,3081.7,0.4922]
[1765566034612,0.58047529,3082.1,3082.0,0.4601]
[1765566035697,0.58047529,3082.1,3082.0,0.9523]
[1765566036101,0.58047529,3082.1,3082.0,0.4601]
[1765566036495,0.58047529,3082.1,3081.0,3.44682875]
[1765566036496,10.31409844,3082.1,3081.0,0.2012]
[1765566036717,3.82501634,3082.1,3082.0,0.4601]
[1765566036906,4.34301634,3082.1,3082.0,0.4601]
[1765566037715,4.34301634,3082.1,3082.0,0.9523]
[1765566038691,3.82501634,3082.1,3082.0,0.9523]
[1765566039114,4.34301634,3082.1,3082.0,0.9523]
[1765566039306,3.82501634,3082.1,3082.0,0.9523]
[1765566039485,4.34301634,3082.1,3082.0,0.9523]
[1765566040303,6.4871878,3083.0,3082.0,0.9523]
[1765566040502,3.24380433,3082.8,3082.1,0.6814]
[1765566040722,0.518,3082.7,3082.2,3.63703348]
[1765566040938,0.518,3082.7,3082.2,0.88480433]
[1765566041108,0.518,3082.7,3082.1,0.1892]
[1765566041109,0.518,3082.7,3082.6,0.4601]
[1765566041639,0.58047529,3083.4,3082.6,0.9523]
[1765566041817,9.72934356,3083.5,3082.6,0.9523]
[1765566041818,0.518,3083.3,3082.6,0.9523]
[1765566042002,0.518,3083.3,3082.7,0.4922]
[1765566042610,9.73015047,3083.2,3082.3,0.4922]
[1765566042940,9.73015047,3083.2,3082.1,0.1892]
[1765566042941,0.58047529,3083.1,3082.4,0.4922]
[1765566043630,1.06597529,3083.1,3082.2,0.4922]
[1765566044526,0.58047529,3082.9,3082.2,0.4922]
[1765566044713,0.518,3082.8,3082.1,0.1892]
[1765566044911,0.7051,3082.8,3082.1,0.1892]
[1765566045209,0.58047529,3082.9,3082.7,0.4601]
[1765566045411,0.518,3082.8,3082.7,0.4601]
[1765566046703,10.82988828,3082.8,3082.1,0.1892]
[1765566046904,0.58047529,3082.7,3082.1,0.6814]
[1765566047317,0.58047529,3082.7,3082.1,0.1892]
[1765566047522,1.06597529,3082.7,3082.1,0.1892]
[1765566048464,0.58047529,3082.7,3081.8,0.4922]
[1765566048630,1.06597529,3082.7,3081.8,0.4922]
[1765566048832,1.2515342,3082.6,3081.8,0.4922]
[1765566049033,6.48824006,3082.5,3081.8,0.4922]
[1765566049446,3.82459532,3082.5,3082.4,0.6493]
[1765566049762,4.34259532,3082.5,3082.4,0.6493]
[1765566049965,10.83083538,3082.5,3082.1,0.1892]
[1765566050157,11.31373538,3082.5,3081.7,0.4922]
[1765566050556,12.49365892,3082.5,3081.7,0.4922]
[1765566050863,0.58047529,3082.4,3081.7,0.4922]
[1765566051052,9.73299159,3082.3,3081.7,0.4922]
[1765566052040,0.58047529,3082.2,3081.7,0.4922]
[1765566052245,0.518,3082.1,3081.7,0.4922]
[1765566053157,6.48929266,3082.0,3081.7,0.4922]
[1765566053535,10.31441428,3082.0,3081.4,0.4623]
[1765566053735,9.73393899,3082.0,3081.4,0.4623]
[1765566054076,9.73393899,3082.0,3081.0,0.2012]
[1765566054077,0.58047529,3081.9,3081.0,0.2012]
[1765566054276,0.58047529,3081.9,3081.1,0.4623]
[1765566055176,0.58047529,3081.7,3081.1,0.4623]
[1765566055394,0.518,3081.6,3081.1,0.4623]
[1765566056190,0.4527,3081.2,3081.0,0.002]
[1765566056388,29.16380729,3081.5,3081.0,0.002]
[1765566056389,0.6392,3081.1,3081.0,0.002]
[1765566057165,4.46526939,3081.1,3081.0,0.002]